[Event "Titled Tuesday Blitz May 16 Early 2023"]
[White "Le, Tuan Minh"]
[Black "iHateNAJDORF"]
[WhiteFideId "12401153"]
[WhiteElo "2566"]
[BlackElo "2519"]
[Result "1-0"]
[Round "01"]
[TimeControl "180+2"]
[Date "2023.05.16"]
[WhiteClock "0:01:09"]
[BlackClock "0:00:32"]

1. d4 {[%clk 0:02:52]}  d5 {[%clk 0:02:57]} 2. Nf3 {[%clk 0:02:43]}  Nf6 {[%clk 0:02:57]} 3. Bf4 {[%clk 0:02:40]}  c5 {[%clk 0:02:56]} 4. c3 {[%clk 0:02:38]}  Qb6 {[%clk 0:02:53]} 5. Qc2 {[%clk 0:02:38]}  Nc6 {[%clk 0:02:50]} 6. e3 {[%clk 0:02:38]}  Bf5 {[%clk 0:02:46]} 7. dxc5 {[%clk 0:02:38]}  Bxc2 {[%clk 0:02:39]} 8. cxb6 {[%clk 0:02:37]}  axb6 {[%clk 0:02:31]} 9. Na3 {[%clk 0:02:38]}  Bg6 {[%clk 0:02:24]} 10. Nb5 {[%clk 0:02:37]}  Kd7 {[%clk 0:02:24]} 11. Be2 {[%clk 0:02:36]}  e6 {[%clk 0:02:17]} 12. O-O {[%clk 0:02:36]}  Nh5 {[%clk 0:02:08]} 13. Bc7 {[%clk 0:02:33]}  Ra6 {[%clk 0:02:05]} 14. c4 {[%clk 0:02:31]}  dxc4 {[%clk 0:01:52]} 15. Bxc4 {[%clk 0:02:23]}  Be7 {[%clk 0:01:44]} 16. Rfd1+ {[%clk 0:02:21]}  Kc8 {[%clk 0:01:40]} 17. Rac1 {[%clk 0:02:09]}  Bc5 {[%clk 0:01:25]} 18. a3 {[%clk 0:02:03]}  Na7 {[%clk 0:01:12]} 19. Be5 {[%clk 0:01:20]}  Nc6 {[%clk 0:00:53]} 20. Nd6+ {[%clk 0:01:20]}  Bxd6 {[%clk 0:00:50]} 21. Bxa6 {[%clk 0:01:13]}  Bxe5 {[%clk 0:00:47]} 22. Nxe5 {[%clk 0:01:10]}  Kc7 {[%clk 0:00:32]} 23. Rd7+ {[%clk 0:01:09]} 1-0


[Site "https://www.chess.com"]

[Event "Titled Tuesday Blitz May 16 Early 2023"]
[White "Perera Alfonso, Rene Humberto"]
[Black "Ter-Sahakyan, Samvel"]
[WhiteFideId "3514722"]
[BlackFideId "13302531"]
[WhiteElo "2313"]
[BlackElo "2545"]
[Result "0-1"]
[Round "01"]
[TimeControl "180+2"]
[Date "2023.05.16"]
[WhiteClock "0:00:09"]
[BlackClock "0:02:12"]

1. e4 {[%clk 0:03:00]}  c5 {[%clk 0:02:59]} 2. Nf3 {[%clk 0:03:00]}  e6 {[%clk 0:02:59]} 3. d4 {[%clk 0:03:00]}  cxd4 {[%clk 0:03:00]} 4. Nxd4 {[%clk 0:03:00]}  Nf6 {[%clk 0:03:01]} 5. Nc3 {[%clk 0:03:00]}  Nc6 {[%clk 0:03:02]} 6. Ndb5 {[%clk 0:03:00]}  Bc5 {[%clk 0:03:01]} 7. Nd6+ {[%clk 0:03:00]}  Ke7 {[%clk 0:03:00]} 8. Bf4 {[%clk 0:03:00]}  e5 {[%clk 0:02:58]} 9. Nf5+ {[%clk 0:02:58]}  Kf8 {[%clk 0:02:58]} 10. Bg5 {[%clk 0:02:58]}  Bb4 {[%clk 0:02:58]} 11. Ne3 {[%clk 0:02:55]}  Qa5 {[%clk 0:02:38]} 12. Nc4 {[%clk 0:02:36]}  Bxc3+ {[%clk 0:02:32]} 13. bxc3 {[%clk 0:02:37]}  Qxc3+ {[%clk 0:02:26]} 14. Bd2 {[%clk 0:02:36]}  Qd4 {[%clk 0:02:26]} 15. c3 {[%clk 0:02:36]}  Qxe4+ {[%clk 0:02:25]} 16. Be3 {[%clk 0:02:20]}  d5 {[%clk 0:02:25]} 17. Nd6 {[%clk 0:01:36]}  Qg4 {[%clk 0:02:24]} 18. Qb3 {[%clk 0:00:52]}  Qd7 {[%clk 0:02:23]} 19. Bc5 {[%clk 0:00:35]}  Kg8 {[%clk 0:02:23]} 20. Be2 {[%clk 0:00:26]}  Qc7 {[%clk 0:02:14]} 21. O-O {[%clk 0:00:20]}  b6 {[%clk 0:02:13]} 22. Ba3 {[%clk 0:00:09]}  Be6 {[%clk 0:02:12]} 0-1


[Site "https://www.chess.com"]

[Event "Titled Tuesday Blitz May 16 Early 2023"]
[White "Tang, Andrew"]
[Black "Tokman, Ariel"]
[WhiteFideId "2059630"]
[BlackFideId "117420"]
[WhiteElo "2596"]
[BlackElo "2263"]
[Result "0-1"]
[Round "01"]
[TimeControl "180+2"]
[Date "2023.05.16"]
[WhiteClock "0:00:00"]
[BlackClock "0:00:03"]

1. d4 {[%clk 0:02:59]}  Nf6 {[%clk 0:02:59]} 2. c4 {[%clk 0:02:58]}  c6 {[%clk 0:02:57]} 3. Bf4 {[%clk 0:02:58]}  d5 {[%clk 0:02:57]} 4. e3 {[%clk 0:02:58]}  Bf5 {[%clk 0:02:54]} 5. Nc3 {[%clk 0:02:58]}  e6 {[%clk 0:02:54]} 6. Qb3 {[%clk 0:02:58]}  Qb6 {[%clk 0:02:53]} 7. c5 {[%clk 0:02:56]}  Qxb3 {[%clk 0:02:48]} 8. axb3 {[%clk 0:02:57]}  Nbd7 {[%clk 0:02:38]} 9. b4 {[%clk 0:02:57]}  Nh5 {[%clk 0:02:27]} 10. b5 {[%clk 0:02:38]}  Nxf4 {[%clk 0:02:26]} 11. exf4 {[%clk 0:02:37]}  Be7 {[%clk 0:02:00]} 12. Nf3 {[%clk 0:02:33]}  O-O {[%clk 0:01:54]} 13. Kd2 {[%clk 0:02:32]}  cxb5 {[%clk 0:01:29]} 14. Bxb5 {[%clk 0:02:18]}  Nf6 {[%clk 0:01:28]} 15. Ne5 {[%clk 0:02:13]}  a6 {[%clk 0:01:23]} 16. Be2 {[%clk 0:02:11]}  Rfd8 {[%clk 0:01:06]} 17. g4 {[%clk 0:02:10]}  Bg6 {[%clk 0:01:03]} 18. h4 {[%clk 0:02:10]}  h5 {[%clk 0:00:48]} 19. g5 {[%clk 0:02:08]}  Nd7 {[%clk 0:00:44]} 20. b4 {[%clk 0:01:57]}  Nxe5 {[%clk 0:00:39]} 21. fxe5 {[%clk 0:01:56]}  Rdb8 {[%clk 0:00:32]} 22. Ra4 {[%clk 0:01:53]}  b6 {[%clk 0:00:21]} 23. Rxa6 {[%clk 0:00:50]}  Rxa6 {[%clk 0:00:21]} 24. Bxa6 {[%clk 0:00:51]}  bxc5 {[%clk 0:00:21]} 25. bxc5 {[%clk 0:00:49]}  Rb4 {[%clk 0:00:21]} 26. Ke3 {[%clk 0:00:26]}  f6 {[%clk 0:00:19]} 27. c6 {[%clk 0:00:15]}  Bd8 {[%clk 0:00:18]} 28. gxf6 {[%clk 0:00:12]}  gxf6 {[%clk 0:00:19]} 29. f4 {[%clk 0:00:11]}  Bb6 {[%clk 0:00:19]} 30. Ne2 {[%clk 0:00:10]}  Kf7 {[%clk 0:00:18]} 31. Rc1 {[%clk 0:00:10]}  Bc7 {[%clk 0:00:14]} 32. Rc3 {[%clk 0:00:10]}  Ke7 {[%clk 0:00:13]} 33. Bd3 {[%clk 0:00:06]}  Be8 {[%clk 0:00:10]} 34. Rc2 {[%clk 0:00:03]}  Rb6 {[%clk 0:00:10]} 35. Ng3 {[%clk 0:00:03]}  fxe5 {[%clk 0:00:06]} 36. fxe5 {[%clk 0:00:04]}  Bxc6 {[%clk 0:00:05]} 37. Nxh5 {[%clk 0:00:04]}  Bb8 {[%clk 0:00:02]} 38. Nf4 {[%clk 0:00:04]}  Be8 {[%clk 0:00:02]} 39. h5 {[%clk 0:00:05]}  Rb4 {[%clk 0:00:02]} 40. h6 {[%clk 0:00:03]}  Ba7 {[%clk 0:00:03]} 41. h7 {[%clk 0:00:03]}  Bxd4+ {[%clk 0:00:03]} 42. Kf3 {[%clk 0:00:03]}  Bxe5 {[%clk 0:00:03]} 43. Rc7+ {[%clk 0:00:04]}  Kd6 {[%clk 0:00:03]} 44. Rc8 {[%clk 0:00:04]}  Rxf4+ {[%clk 0:00:03]} 45. Ke2 {[%clk 0:00:04]}  Bh5+ {[%clk 0:00:03]} 46. Ke1 {[%clk 0:00:03]}  Bd4 {[%clk 0:00:03]} 47. h8=Q {[%clk 0:00:02]}  Bxh8 {[%clk 0:00:04]} 48. Rxh8 {[%clk 0:00:03]}  Bg4 {[%clk 0:00:04]} 49. Kd2 {[%clk 0:00:03]}  Bf5 {[%clk 0:00:04]} 50. Ke3 {[%clk 0:00:04]}  Rb4 {[%clk 0:00:03]} 51. Be2 {[%clk 0:00:04]}  Ke5 {[%clk 0:00:03]} 52. Rc8 {[%clk 0:00:03]}  d4+ {[%clk 0:00:04]} 53. Kf2 {[%clk 0:00:04]}  Rb3 {[%clk 0:00:04]} 54. Bf3 {[%clk 0:00:04]}  Re3 {[%clk 0:00:03]} 55. Rc5+ {[%clk 0:00:04]}  Kd6 {[%clk 0:00:03]} 56. Rc6+ {[%clk 0:00:03]}  Kd7 {[%clk 0:00:03]} 57. Rc4 {[%clk 0:00:04]}  e5 {[%clk 0:00:03]} 58. Rc5 {[%clk 0:00:04]}  Ke6 {[%clk 0:00:03]} 59. Rc6+ {[%clk 0:00:05]}  Kf7 {[%clk 0:00:03]} 60. Bd5+ {[%clk 0:00:05]}  Kg7 {[%clk 0:00:02]} 61. Rc7+ {[%clk 0:00:05]}  Kf6 {[%clk 0:00:02]} 62. Rf7+ {[%clk 0:00:03]}  Kg5 {[%clk 0:00:03]} 63. Bf3 {[%clk 0:00:04]}  Kf4 {[%clk 0:00:03]} 64. Bh5 {[%clk 0:00:03]}  Rc3 {[%clk 0:00:03]} 65. Bg6 {[%clk 0:00:04]}  Rc2+ {[%clk 0:00:03]} 66. Ke1 {[%clk 0:00:04]}  Ke3 {[%clk 0:00:03]} 67. Bh5 {[%clk 0:00:03]}  Rc1+ {[%clk 0:00:03]} 68. Bd1 {[%clk 0:00:03]}  Bg4 {[%clk 0:00:03]} 69. Kf1 {[%clk 0:00:01]}  Rxd1+ {[%clk 0:00:03]} 70. Kg2 {[%clk 0:00:02]}  e4 {[%clk 0:00:03]} 71. Kg3 {[%clk 0:00:00]}  Bf3 {[%clk 0:00:03]} 0-1


[Site "https://www.chess.com"]

[Event "Titled Tuesday Blitz May 16 Early 2023"]
[White "Dino_Ballecer"]
[Black "Van Foreest, Jorden"]
[BlackFideId "1039784"]
[WhiteElo "2515"]
[BlackElo "2633"]
[Result "0-1"]
[Round "01"]
[TimeControl "180+2"]
[Date "2023.05.16"]
[WhiteClock "0:00:24"]
[BlackClock "0:00:19"]

1. e4 {[%clk 0:02:59]}  c5 {[%clk 0:02:59]} 2. Nf3 {[%clk 0:02:57]}  d6 {[%clk 0:02:59]} 3. Bb5+ {[%clk 0:02:56]}  Bd7 {[%clk 0:02:58]} 4. Bxd7+ {[%clk 0:02:54]}  Nxd7 {[%clk 0:02:57]} 5. O-O {[%clk 0:02:55]}  e6 {[%clk 0:02:57]} 6. Qe2 {[%clk 0:02:55]}  Be7 {[%clk 0:02:57]} 7. b3 {[%clk 0:02:55]}  Bf6 {[%clk 0:02:57]} 8. c3 {[%clk 0:02:53]}  g5 {[%clk 0:02:49]} 9. Rd1 {[%clk 0:02:39]}  g4 {[%clk 0:02:48]} 10. Ne1 {[%clk 0:02:39]}  h5 {[%clk 0:02:48]} 11. d4 {[%clk 0:02:39]}  Ne7 {[%clk 0:02:38]} 12. Na3 {[%clk 0:02:17]}  Nc6 {[%clk 0:02:26]} 13. Nc4 {[%clk 0:02:14]}  cxd4 {[%clk 0:02:21]} 14. cxd4 {[%clk 0:01:58]}  Nxd4 {[%clk 0:02:17]} 15. Rxd4 {[%clk 0:01:58]}  Bxd4 {[%clk 0:02:17]} 16. Nxd6+ {[%clk 0:01:51]}  Kf8 {[%clk 0:02:17]} 17. Ba3 {[%clk 0:01:49]}  Kg8 {[%clk 0:01:53]} 18. Rd1 {[%clk 0:01:46]}  Qf6 {[%clk 0:01:53]} 19. Nb5 {[%clk 0:01:23]}  e5 {[%clk 0:01:42]} 20. Nxd4 {[%clk 0:01:21]}  exd4 {[%clk 0:01:42]} 21. Bb2 {[%clk 0:01:22]}  Qe6 {[%clk 0:01:35]} 22. Bxd4 {[%clk 0:01:19]}  Rh6 {[%clk 0:01:34]} 23. Nd3 {[%clk 0:01:15]}  Re8 {[%clk 0:01:33]} 24. Re1 {[%clk 0:01:13]}  Qd6 {[%clk 0:01:19]} 25. Ba1 {[%clk 0:01:11]}  Rhe6 {[%clk 0:01:16]} 26. e5 {[%clk 0:01:05]}  Nxe5 {[%clk 0:01:06]} 27. Nxe5 {[%clk 0:00:59]}  f6 {[%clk 0:01:05]} 28. h3 {[%clk 0:00:45]}  gxh3 {[%clk 0:00:55]} 29. Qxh5 {[%clk 0:00:44]}  fxe5 {[%clk 0:00:55]} 30. Qxh3 {[%clk 0:00:39]}  Rg6 {[%clk 0:00:56]} 31. Qf5 {[%clk 0:00:38]}  Qc6 {[%clk 0:00:56]} 32. f3 {[%clk 0:00:34]}  Qb6+ {[%clk 0:00:45]} 33. Kf1 {[%clk 0:00:34]}  Rh6 {[%clk 0:00:40]} 34. Rxe5 {[%clk 0:00:27]}  Rxe5 {[%clk 0:00:24]} 35. Bxe5 {[%clk 0:00:28]}  Qb5+ {[%clk 0:00:21]} 36. Kf2 {[%clk 0:00:28]}  Qc5+ {[%clk 0:00:21]} 37. Kg3 {[%clk 0:00:27]}  Qe7 {[%clk 0:00:20]} 38. Bf4 {[%clk 0:00:24]}  Qh4# {[%clk 0:00:19]} 0-1


[Site "https://www.chess.com"]

[Event "Titled Tuesday Blitz May 16 Early 2023"]
[White "Maghsoodloo, Parham"]
[Black "Degenbaev, Aziz"]
[WhiteFideId "12539929"]
[BlackFideId "13802640"]
[WhiteElo "2655"]
[BlackElo "2152"]
[Result "1-0"]
[Round "01"]
[TimeControl "180+2"]
[Date "2023.05.16"]
[WhiteClock "0:00:05"]
[BlackClock "0:00:02"]

1. e4 {[%clk 0:02:59]}  c5 {[%clk 0:02:59]} 2. Nf3 {[%clk 0:02:59]}  d6 {[%clk 0:03:00]} 3. d4 {[%clk 0:02:59]}  cxd4 {[%clk 0:03:00]} 4. Nxd4 {[%clk 0:03:00]}  Nf6 {[%clk 0:03:01]} 5. Nc3 {[%clk 0:03:00]}  a6 {[%clk 0:03:02]} 6. Bg5 {[%clk 0:03:00]}  e6 {[%clk 0:03:01]} 7. f4 {[%clk 0:02:59]}  Be7 {[%clk 0:03:02]} 8. Qf3 {[%clk 0:02:58]}  Qc7 {[%clk 0:03:02]} 9. O-O-O {[%clk 0:02:58]}  Nbd7 {[%clk 0:02:54]} 10. g4 {[%clk 0:02:58]}  h6 {[%clk 0:02:52]} 11. Bh4 {[%clk 0:02:57]}  b5 {[%clk 0:02:32]} 12. a3 {[%clk 0:02:53]}  Bb7 {[%clk 0:02:31]} 13. Bg2 {[%clk 0:02:49]}  g5 {[%clk 0:02:24]} 14. fxg5 {[%clk 0:02:45]}  Ne5 {[%clk 0:02:24]} 15. Qe2 {[%clk 0:02:44]}  hxg5 {[%clk 0:02:20]} 16. Bxg5 {[%clk 0:02:44]}  Rg8 {[%clk 0:02:20]} 17. h4 {[%clk 0:02:43]}  Nfxg4 {[%clk 0:02:19]} 18. Bxe7 {[%clk 0:02:43]}  Qxe7 {[%clk 0:02:17]} 19. Kb1 {[%clk 0:02:43]}  O-O-O {[%clk 0:02:12]} 20. h5 {[%clk 0:02:42]}  Kb8 {[%clk 0:02:06]} 21. Rh3 {[%clk 0:02:38]}  Nc4 {[%clk 0:02:01]} 22. Rdh1 {[%clk 0:02:22]}  Qf6 {[%clk 0:01:55]} 23. Rd3 {[%clk 0:01:40]}  Qh6 {[%clk 0:01:40]} 24. Ka1 {[%clk 0:01:33]}  Nge5 {[%clk 0:01:16]} 25. Rdh3 {[%clk 0:01:31]}  Rg7 {[%clk 0:01:11]} 26. Rd1 {[%clk 0:01:12]}  Rdg8 {[%clk 0:01:09]} 27. Bf1 {[%clk 0:01:12]}  Rg3 {[%clk 0:01:05]} 28. Rxg3 {[%clk 0:01:01]}  Rxg3 {[%clk 0:01:05]} 29. Qf2 {[%clk 0:01:02]}  Rg5 {[%clk 0:00:46]} 30. Ndxb5 {[%clk 0:00:57]}  axb5 {[%clk 0:00:43]} 31. Nxb5 {[%clk 0:00:58]}  Qg7 {[%clk 0:00:35]} 32. h6 {[%clk 0:00:33]}  Qh8 {[%clk 0:00:34]} 33. Rxd6 {[%clk 0:00:20]}  Nxd6 {[%clk 0:00:08]} 34. Qa7+ {[%clk 0:00:20]}  Kc8 {[%clk 0:00:09]} 35. Nxd6+ {[%clk 0:00:20]}  Kc7 {[%clk 0:00:09]} 36. Nb5+ {[%clk 0:00:11]}  Kc6 {[%clk 0:00:07]} 37. Nd4+ {[%clk 0:00:06]}  Kc7 {[%clk 0:00:07]} 38. Qc5+ {[%clk 0:00:07]}  Kb8 {[%clk 0:00:07]} 39. Nb5 {[%clk 0:00:06]}  Qd8 {[%clk 0:00:02]} 40. h7 {[%clk 0:00:06]}  Nf3 {[%clk 0:00:01]} 41. Qa7+ {[%clk 0:00:05]}  Kc8 {[%clk 0:00:01]} 42. e5 {[%clk 0:00:05]}  Rg1 {[%clk 0:00:01]} 43. Nd6+ {[%clk 0:00:04]}  Qxd6 {[%clk 0:00:01]} 44. exd6 {[%clk 0:00:04]}  Rxf1+ {[%clk 0:00:01]} 45. Ka2 {[%clk 0:00:05]}  Rh1 {[%clk 0:00:02]} 46. Qb6 {[%clk 0:00:05]}  Ne5 {[%clk 0:00:02]} 47. Qc7# {[%clk 0:00:05]} 1-0


[Site "https://www.chess.com"]

[Event "Titled Tuesday Blitz May 16 Early 2023"]
[White "Kuzmin, Roman"]
[Black "Matlakov, Maxim"]
[WhiteFideId "44134932"]
[BlackFideId "4168003"]
[WhiteElo "2122"]
[BlackElo "2666"]
[Result "0-1"]
[Round "01"]
[TimeControl "180+2"]
[Date "2023.05.16"]
[WhiteClock "0:00:00"]
[BlackClock "0:00:54"]

1. e4 {[%clk 0:03:00]}  c5 {[%clk 0:02:58]} 2. Nf3 {[%clk 0:03:01]}  e6 {[%clk 0:02:59]} 3. d4 {[%clk 0:03:01]}  cxd4 {[%clk 0:02:59]} 4. Nxd4 {[%clk 0:03:02]}  Nc6 {[%clk 0:02:59]} 5. Nc3 {[%clk 0:03:02]}  Qc7 {[%clk 0:02:59]} 6. Be3 {[%clk 0:03:02]}  a6 {[%clk 0:02:59]} 7. Qd2 {[%clk 0:03:02]}  Nf6 {[%clk 0:02:58]} 8. O-O-O {[%clk 0:03:01]}  Bb4 {[%clk 0:02:52]} 9. f3 {[%clk 0:03:01]}  O-O {[%clk 0:02:51]} 10. Nb3 {[%clk 0:02:51]}  b5 {[%clk 0:02:48]} 11. Bc5 {[%clk 0:02:37]}  Bxc5 {[%clk 0:02:46]} 12. Nxc5 {[%clk 0:02:38]}  Rd8 {[%clk 0:02:32]} 13. Qd6 {[%clk 0:02:33]}  Qb6 {[%clk 0:02:29]} 14. Nb3 {[%clk 0:02:19]}  Ne8 {[%clk 0:02:22]} 15. Qc5 {[%clk 0:02:19]}  Qc7 {[%clk 0:02:21]} 16. Be2 {[%clk 0:02:12]}  d6 {[%clk 0:02:20]} 17. Qe3 {[%clk 0:02:10]}  b4 {[%clk 0:02:20]} 18. Nb1 {[%clk 0:02:08]}  a5 {[%clk 0:02:19]} 19. Bb5 {[%clk 0:01:54]}  Bd7 {[%clk 0:02:17]} 20. Bxc6 {[%clk 0:01:46]}  Bxc6 {[%clk 0:02:16]} 21. Nd4 {[%clk 0:01:47]}  Bd7 {[%clk 0:02:14]} 22. Rd3 {[%clk 0:01:45]}  Rdc8 {[%clk 0:02:12]} 23. Qf2 {[%clk 0:01:21]}  a4 {[%clk 0:02:11]} 24. a3 {[%clk 0:01:18]}  Qb6 {[%clk 0:02:05]} 25. Qd2 {[%clk 0:01:12]}  bxa3 {[%clk 0:02:01]} 26. Nxa3 {[%clk 0:01:12]}  Rab8 {[%clk 0:01:59]} 27. c3 {[%clk 0:01:12]}  Nc7 {[%clk 0:01:38]} 28. Kb1 {[%clk 0:01:09]}  d5 {[%clk 0:01:38]} 29. e5 {[%clk 0:01:08]}  Na6 {[%clk 0:01:35]} 30. g4 {[%clk 0:00:51]}  Nc5 {[%clk 0:01:33]} 31. Re3 {[%clk 0:00:52]}  Rb7 {[%clk 0:01:16]} 32. h4 {[%clk 0:00:49]}  Rcb8 {[%clk 0:01:16]} 33. Rh2 {[%clk 0:00:50]}  Nb3 {[%clk 0:01:12]} 34. Nxb3 {[%clk 0:00:47]}  Qxb3 {[%clk 0:01:13]} 35. Kc1 {[%clk 0:00:40]}  Bb5 {[%clk 0:01:05]} 36. Qc2 {[%clk 0:00:34]}  Qa2 {[%clk 0:01:04]} 37. Qb1 {[%clk 0:00:32]}  Qb3 {[%clk 0:01:03]} 38. Qc2 {[%clk 0:00:32]}  Ba6 {[%clk 0:00:56]} 39. Qxb3 {[%clk 0:00:29]}  Rxb3 {[%clk 0:00:57]} 40. Re1 {[%clk 0:00:22]}  d4 {[%clk 0:00:56]} 41. Nb1 {[%clk 0:00:17]}  a3 {[%clk 0:00:55]} 42. Nxa3 {[%clk 0:00:08]}  dxc3 {[%clk 0:00:54]} 43. Kb1 {[%clk 0:00:00]}  Rxa3 {[%clk 0:00:54]} 0-1


[Site "https://www.chess.com"]

[Event "Titled Tuesday Blitz May 16 Early 2023"]
[White "Petrosyan, Manuel"]
[Black "Huber, Benedikt"]
[WhiteFideId "13300857"]
[BlackFideId "12923583"]
[WhiteElo "2576"]
[BlackElo "2215"]
[Result "0-1"]
[Round "01"]
[TimeControl "180+2"]
[Date "2023.05.16"]
[WhiteClock "0:00:00"]
[BlackClock "0:00:15"]

1. e4 {[%clk 0:02:59]}  c5 {[%clk 0:02:56]} 2. Nf3 {[%clk 0:02:59]}  e6 {[%clk 0:02:52]} 3. d4 {[%clk 0:02:56]}  cxd4 {[%clk 0:02:53]} 4. Nxd4 {[%clk 0:02:57]}  Nc6 {[%clk 0:02:53]} 5. Nc3 {[%clk 0:02:54]}  Qc7 {[%clk 0:02:52]} 6. a3 {[%clk 0:02:52]}  a6 {[%clk 0:02:51]} 7. Be3 {[%clk 0:02:50]}  b5 {[%clk 0:02:50]} 8. Bd3 {[%clk 0:02:41]}  Bb7 {[%clk 0:02:49]} 9. O-O {[%clk 0:02:40]}  Nf6 {[%clk 0:02:45]} 10. Nxc6 {[%clk 0:02:09]}  Bxc6 {[%clk 0:02:46]} 11. f4 {[%clk 0:02:06]}  h5 {[%clk 0:02:29]} 12. Kh1 {[%clk 0:01:54]}  h4 {[%clk 0:02:24]} 13. Bd4 {[%clk 0:01:10]}  h3 {[%clk 0:02:22]} 14. g3 {[%clk 0:01:10]}  Qb7 {[%clk 0:02:17]} 15. Qe2 {[%clk 0:01:01]}  b4 {[%clk 0:02:14]} 16. axb4 {[%clk 0:01:00]}  Bxb4 {[%clk 0:02:15]} 17. Bxa6 {[%clk 0:00:36]}  Bxe4+ {[%clk 0:01:24]} 18. Nxe4 {[%clk 0:00:22]}  Rxa6 {[%clk 0:01:23]} 19. Bxf6 {[%clk 0:00:07]}  Rxa1 {[%clk 0:01:17]} 20. Rxa1 {[%clk 0:00:08]}  gxf6 {[%clk 0:01:17]} 21. Kg1 {[%clk 0:00:08]}  Ke7 {[%clk 0:01:14]} 22. c3 {[%clk 0:00:06]}  Bd6 {[%clk 0:01:01]} 23. Nxd6 {[%clk 0:00:05]}  Qb6+ {[%clk 0:00:59]} 24. Qf2 {[%clk 0:00:04]}  Qxd6 {[%clk 0:01:00]} 25. Re1 {[%clk 0:00:03]}  Rb8 {[%clk 0:00:58]} 26. f5 {[%clk 0:00:03]}  Qd5 {[%clk 0:00:49]} 27. fxe6 {[%clk 0:00:02]}  fxe6 {[%clk 0:00:38]} 28. Rf1 {[%clk 0:00:03]}  f5 {[%clk 0:00:29]} 29. Ra1 {[%clk 0:00:03]}  f4 {[%clk 0:00:26]} 30. Rf1 {[%clk 0:00:04]}  Rf8 {[%clk 0:00:24]} 31. Qf3 {[%clk 0:00:04]}  Qc5+ {[%clk 0:00:23]} 32. Qf2 {[%clk 0:00:05]}  Qc6 {[%clk 0:00:22]} 33. Qf3 {[%clk 0:00:03]}  Qb6+ {[%clk 0:00:19]} 34. Qf2 {[%clk 0:00:03]}  Qc6 {[%clk 0:00:19]} 35. Qf3 {[%clk 0:00:03]}  Qc5+ {[%clk 0:00:15]} 36. Qf2 {[%clk 0:00:04]}  Qg5 {[%clk 0:00:15]} 37. Kh1 {[%clk 0:00:00]}  Rf5 {[%clk 0:00:15]} 0-1


[Site "https://www.chess.com"]

[Event "Titled Tuesday Blitz May 16 Early 2023"]
[White "Ezat, Mohamed"]
[Black "Kozak, Adam"]
[WhiteFideId "10600906"]
[BlackFideId "753246"]
[WhiteElo "2386"]
[BlackElo "2469"]
[Result "0-1"]
[Round "01"]
[TimeControl "180+2"]
[Date "2023.05.16"]
[WhiteClock "0:00:00"]
[BlackClock "0:01:26"]

1. d4 {[%clk 0:02:52]}  d5 {[%clk 0:02:55]} 2. c4 {[%clk 0:02:48]}  e6 {[%clk 0:02:54]} 3. Nc3 {[%clk 0:02:47]}  Nf6 {[%clk 0:02:53]} 4. cxd5 {[%clk 0:02:47]}  exd5 {[%clk 0:02:52]} 5. Bg5 {[%clk 0:02:47]}  c6 {[%clk 0:02:52]} 6. Qc2 {[%clk 0:02:46]}  Nbd7 {[%clk 0:02:49]} 7. e3 {[%clk 0:02:46]}  Be7 {[%clk 0:02:49]} 8. Bd3 {[%clk 0:02:45]}  Nh5 {[%clk 0:02:45]} 9. Bxe7 {[%clk 0:02:38]}  Qxe7 {[%clk 0:02:46]} 10. Nge2 {[%clk 0:02:38]}  Nb6 {[%clk 0:02:43]} 11. O-O {[%clk 0:02:35]}  g6 {[%clk 0:02:42]} 12. Rab1 {[%clk 0:02:27]}  a5 {[%clk 0:02:31]} 13. a3 {[%clk 0:02:26]}  a4 {[%clk 0:02:30]} 14. Rfe1 {[%clk 0:02:18]}  O-O {[%clk 0:02:27]} 15. Ng3 {[%clk 0:02:17]}  Nxg3 {[%clk 0:02:25]} 16. hxg3 {[%clk 0:02:16]}  Qd8 {[%clk 0:02:23]} 17. Rbd1 {[%clk 0:02:13]}  Be6 {[%clk 0:02:22]} 18. Ne2 {[%clk 0:02:11]}  Re8 {[%clk 0:02:20]} 19. Nf4 {[%clk 0:02:00]}  Nc8 {[%clk 0:02:19]} 20. e4 {[%clk 0:01:56]}  dxe4 {[%clk 0:02:19]} 21. Bc4 {[%clk 0:00:29]}  Bxc4 {[%clk 0:02:06]} 22. Qxc4 {[%clk 0:00:28]}  Nd6 {[%clk 0:02:06]} 23. Qc5 {[%clk 0:00:26]}  Ra5 {[%clk 0:02:05]} 24. Qc3 {[%clk 0:00:25]}  Rb5 {[%clk 0:02:01]} 25. d5 {[%clk 0:00:25]}  c5 {[%clk 0:02:01]} 26. f3 {[%clk 0:00:20]}  b6 {[%clk 0:01:52]} 27. fxe4 {[%clk 0:00:18]}  Rb3 {[%clk 0:01:52]} 28. Qc2 {[%clk 0:00:15]}  Qg5 {[%clk 0:01:53]} 29. Rd3 {[%clk 0:00:05]}  c4 {[%clk 0:01:46]} 30. Rxb3 {[%clk 0:00:05]}  axb3 {[%clk 0:01:47]} 31. Qc3 {[%clk 0:00:03]}  Qe5 {[%clk 0:01:30]} 32. Qe3 {[%clk 0:00:01]}  Qxb2 {[%clk 0:01:28]} 33. Qxb6 {[%clk 0:00:00]}  Qe5 {[%clk 0:01:26]} 0-1


[Site "https://www.chess.com"]

[Event "Titled Tuesday Blitz May 16 Early 2023"]
[White "KorolDimitriy75"]
[Black "Grigoriants, Sergey"]
[BlackFideId "4130804"]
[WhiteElo "2509"]
[BlackElo "2502"]
[Result "1/2-1/2"]
[Round "01"]
[TimeControl "180+2"]
[Date "2023.05.16"]
[WhiteClock "0:00:17"]
[BlackClock "0:01:15"]

1. d4 {[%clk 0:03:00]}  Nf6 {[%clk 0:02:58]} 2. c4 {[%clk 0:03:00]}  g6 {[%clk 0:02:58]} 3. Nc3 {[%clk 0:03:00]}  d5 {[%clk 0:02:56]} 4. cxd5 {[%clk 0:02:59]}  Nxd5 {[%clk 0:02:57]} 5. e4 {[%clk 0:03:00]}  Nxc3 {[%clk 0:02:57]} 6. bxc3 {[%clk 0:03:01]}  Bg7 {[%clk 0:02:58]} 7. Nf3 {[%clk 0:03:01]}  c5 {[%clk 0:02:58]} 8. Rb1 {[%clk 0:03:01]}  O-O {[%clk 0:02:58]} 9. Be2 {[%clk 0:03:01]}  b6 {[%clk 0:02:52]} 10. O-O {[%clk 0:03:00]}  Ba6 {[%clk 0:02:51]} 11. Bxa6 {[%clk 0:02:50]}  Nxa6 {[%clk 0:02:51]} 12. Qd3 {[%clk 0:02:49]}  Nb8 {[%clk 0:02:42]} 13. d5 {[%clk 0:02:47]}  Nc6 {[%clk 0:02:38]} 14. c4 {[%clk 0:02:34]}  Nd4 {[%clk 0:02:32]} 15. Nxd4 {[%clk 0:02:33]}  Bxd4 {[%clk 0:02:33]} 16. Be3 {[%clk 0:02:10]}  e5 {[%clk 0:02:33]} 17. Bxd4 {[%clk 0:01:58]}  cxd4 {[%clk 0:02:25]} 18. f4 {[%clk 0:01:57]}  f6 {[%clk 0:02:23]} 19. c5 {[%clk 0:01:05]}  bxc5 {[%clk 0:02:18]} 20. Qc4 {[%clk 0:01:05]}  Qd6 {[%clk 0:02:13]} 21. f5 {[%clk 0:00:54]}  Rab8 {[%clk 0:02:06]} 22. g4 {[%clk 0:00:43]}  Rb6 {[%clk 0:01:51]} 23. Rbc1 {[%clk 0:00:29]}  Rc8 {[%clk 0:01:40]} 24. Rf2 {[%clk 0:00:29]}  Rb4 {[%clk 0:01:29]} 25. Qxb4 {[%clk 0:00:27]}  cxb4 {[%clk 0:01:28]} 26. Rxc8+ {[%clk 0:00:28]}  Kg7 {[%clk 0:01:29]} 27. Rc6 {[%clk 0:00:22]}  Qd8 {[%clk 0:01:27]} 28. g5 {[%clk 0:00:20]}  fxg5 {[%clk 0:01:17]} 29. f6+ {[%clk 0:00:20]}  Kf7 {[%clk 0:01:18]} 30. Re6 {[%clk 0:00:20]}  d3 {[%clk 0:01:16]} 31. Re7+ {[%clk 0:00:20]}  Kf8 {[%clk 0:01:14]} 32. Rxh7 {[%clk 0:00:20]}  d2 {[%clk 0:01:15]} 33. Rh8+ {[%clk 0:00:16]}  Kf7 {[%clk 0:01:15]} 34. Rxd8 {[%clk 0:00:16]}  d1=Q+ {[%clk 0:01:15]} 35. Kg2 {[%clk 0:00:17]}  Qg4+ {[%clk 0:01:15]} 36. Kf1 {[%clk 0:00:17]}  Qd1+ {[%clk 0:01:15]} 37. Kg2 {[%clk 0:00:17]}  Qg4+ {[%clk 0:01:15]} 38. Kf1 {[%clk 0:00:17]}  Qd1+ {[%clk 0:01:15]} 39. Kg2 {[%clk 0:00:17]} 1/2-1/2


[Site "https://www.chess.com"]